bitfinex-derivatives/quotes_BNBF0:USTF0_20250709
["timestamp","ask_amount","ask_price","bid_price","bid_amount"]
[1752020163552,1.46404336,659.99,659.62,2.053]
[1752020163755,1.46404336,659.98,659.62,2.053]
[1752020163956,1.46404336,659.97,659.62,2.053]
[1752020164155,1.46404336,659.96,659.62,2.053]
[1752020164356,1.46404336,659.95,659.62,2.053]
[1752020164652,1.46404336,659.94,659.62,2.053]
[1752020164853,1.46404336,659.93,659.62,2.053]
[1752020165057,1.46404336,659.92,659.62,2.053]
[1752020165255,1.46404336,659.91,659.62,2.053]
[1752020165454,1.46404336,659.9,659.62,2.053]
[1752020165755,1.46404336,659.89,659.62,2.053]
[1752020165954,1.46404336,659.88,659.62,2.053]
[1752020166157,1.69718897,660.07,659.62,2.053]
[1752020166457,1.46404061,660.06,659.62,2.053]
[1752020166657,1.46404061,660.05,659.62,2.053]
[1752020166855,1.46404061,660.04,659.62,2.053]
[1752020167058,1.46404061,660.03,659.62,2.053]
[1752020167257,1.46404061,660.02,659.62,2.053]
[1752020167456,1.46404061,660.01,659.62,2.053]
[1752020167660,1.46404061,660.0,659.62,2.053]
[1752020167860,1.46404061,659.99,659.62,2.053]
[1752020168057,1.46404061,659.98,659.62,2.053]
[1752020168361,1.46404061,659.97,659.62,2.053]
[1752020168558,1.46404061,659.96,659.62,2.053]
[1752020168761,1.46404061,659.95,659.62,2.053]
[1752020169062,1.46404061,659.94,659.62,2.053]
[1752020169358,1.46404061,659.93,659.62,2.053]
[1752020169558,1.46404061,659.92,659.62,2.053]
[1752020169762,1.46404061,659.91,659.62,2.053]
[1752020170058,1.46404061,659.9,659.62,2.053]
[1752020170258,1.46404061,659.89,659.62,2.053]
[1752020170461,1.46404061,659.88,659.62,2.053]
[1752020170662,1.69718897,660.07,659.62,2.053]
[1752020170859,1.46408637,660.06,659.62,2.053]
[1752020171162,1.46408637,660.05,659.62,2.053]
[1752020171459,1.46408637,660.04,659.62,2.053]
[1752020171658,1.46408637,660.03,659.62,2.053]
[1752020171861,1.46408637,660.02,659.62,2.053]
[1752020172059,1.46408637,660.01,659.62,2.053]
[1752020172257,1.46408637,660.0,659.62,2.053]
[1752020172458,1.46408637,659.99,659.62,2.053]
[1752020172655,1.46408637,659.98,659.62,2.053]
[1752020172861,1.46408637,659.97,659.62,2.053]
[1752020173059,1.46408637,659.96,659.62,2.053]
[1752020173362,1.46408637,659.95,659.62,2.053]
[1752020173563,1.46408637,659.94,659.62,2.053]
[1752020173859,1.46408637,659.93,659.62,2.053]
[1752020174059,1.46408637,659.92,659.62,2.053]
[1752020174260,1.46408637,659.91,659.62,2.053]
[1752020174459,1.46408637,659.9,659.62,2.053]
[1752020174659,1.46408637,659.89,659.62,2.053]
[1752020174866,1.46408637,659.88,659.62,2.053]
[1752020175061,1.69718897,660.07,659.62,2.053]
[1752020175260,1.46420266,660.06,659.62,2.053]
[1752020175465,1.46420266,660.05,659.62,2.053]
[1752020175666,1.46420266,660.04,659.62,2.053]
[1752020175867,1.46420266,660.03,659.62,2.053]
[1752020176064,1.69718897,660.07,659.62,2.053]
[1752020176065,1.46420266,660.02,659.62,2.053]
[1752020176260,1.46420266,660.01,659.62,2.053]
[1752020176461,1.46420266,660.0,659.62,2.053]
[1752020176662,1.46420266,659.99,659.62,2.053]
[1752020176961,1.69718897,660.06,659.62,2.053]
[1752020176962,1.46420266,659.98,659.62,2.053]
[1752020177264,1.46420266,659.97,659.62,2.053]
[1752020177465,1.46420266,659.96,659.62,2.053]
[1752020177661,1.46420266,659.95,659.62,2.053]
[1752020177863,1.46420266,659.94,659.62,2.053]
[1752020178066,1.46420266,659.93,659.62,2.053]
[1752020178366,1.46420266,659.92,659.62,2.053]
[1752020178566,1.46420266,659.91,659.62,2.053]
[1752020178768,1.46420266,659.9,659.62,2.053]
[1752020179062,1.46420266,659.89,659.62,2.053]
[1752020179265,1.46420266,659.88,659.62,2.053]
[1752020179562,1.46420266,659.87,659.62,2.053]
[1752020179763,1.69718897,660.06,659.62,2.053]
[1752020179966,1.46445741,660.05,659.62,2.053]
[1752020180166,1.46445741,660.04,659.62,2.053]
[1752020180466,1.46445741,660.03,659.62,2.053]
[1752020180668,1.46445741,660.02,659.62,2.053]
[1752020180864,1.46445741,660.01,659.62,2.053]
[1752020181165,1.46445741,660.0,659.62,2.053]
[1752020181368,1.46445741,659.99,659.62,2.053]
[1752020181569,1.46445741,659.98,659.62,2.053]
[1752020181766,1.46445741,659.97,659.62,2.053]
[1752020181970,1.46445741,659.96,659.62,2.053]
[1752020182167,1.46445741,659.95,659.62,2.053]
[1752020182370,1.46445741,659.94,659.62,2.053]
[1752020182573,1.46445741,659.93,659.62,2.053]
[1752020182867,1.46445741,659.92,659.62,2.053]
[1752020183072,1.46445741,659.91,659.62,2.053]
[1752020183270,1.46445741,659.9,659.62,2.053]
[1752020183470,1.46445741,659.89,659.62,2.053]
[1752020183673,1.46445741,659.88,659.62,2.053]
[1752020183969,1.46445741,659.87,659.62,2.053]
[1752020184172,1.46445741,659.86,659.62,2.053]
[1752020184370,1.69718897,660.05,659.62,2.053]
[1752020184675,1.4648678,660.04,659.62,2.053]
[1752020184969,1.4648678,660.03,659.63,0.26366832]
[1752020185273,1.69718897,660.05,659.63,0.26366832]
[1752020185274,1.4648678,660.02,659.63,0.26366832]
[1752020185470,1.4648678,660.01,659.63,0.26366832]
[1752020185673,1.4648678,660.0,659.63,0.26366832]
[1752020185869,1.4648678,659.99,659.63,0.26366832]
[1752020186073,1.4648678,659.98,659.63,0.26366832]
[1752020186373,1.4648678,659.97,659.63,0.26366832]
[1752020186571,1.4648678,659.96,659.63,0.26366832]
[1752020186775,1.4648678,659.95,659.63,0.26366832]
[1752020187074,1.4648678,659.94,659.63,0.26366832]
[1752020187275,1.4648678,659.93,659.63,0.26366832]
[1752020187472,1.4648678,659.92,659.63,0.26366832]
[1752020187678,1.4648678,659.91,659.64,1.578]
[1752020187976,1.4648678,659.9,659.64,1.578]
[1752020188271,1.4648678,659.89,659.64,1.578]
[1752020188476,1.4648678,659.88,659.64,1.578]
[1752020188672,1.4648678,659.87,659.64,1.578]
[1752020188877,1.4648678,659.86,659.64,1.578]
[1752020189073,1.4648678,659.85,659.64,1.578]
[1752020189374,1.4648678,659.84,659.64,1.578]
[1752020189573,1.4648678,659.83,659.64,1.578]
[1752020189875,1.69718897,660.07,659.64,1.578]
[1752020190077,1.46550013,660.06,659.64,1.578]
[1752020190278,1.46550013,660.05,659.64,1.578]
[1752020190478,1.46550013,660.04,659.64,1.578]
[1752020190772,1.46550013,660.03,659.64,1.578]
[1752020190978,1.46550013,660.02,659.64,1.578]
[1752020191274,0.26366832,660.31,659.64,1.578]
[1752020191275,1.46550013,660.01,659.64,1.578]
[1752020191477,1.69718897,660.07,659.64,1.578]
[1752020191478,1.46550013,660.0,659.64,1.578]
[1752020191773,1.46550013,659.99,659.64,1.578]
[1752020191974,1.69718897,660.07,659.64,1.578]
[1752020191975,1.46550013,659.98,659.64,1.578]
[1752020192274,1.46550013,659.97,659.64,1.578]
[1752020192479,1.46550013,659.96,659.64,1.578]
[1752020192678,1.46550013,659.95,659.64,1.578]
[1752020192877,1.46550013,659.94,659.64,1.578]
[1752020193179,1.46550013,659.93,659.64,1.578]
[1752020193375,1.46550013,659.92,659.64,1.578]
[1752020193578,1.46550013,659.91,659.64,1.578]
[1752020193781,1.46550013,659.9,659.64,1.578]
[1752020193979,1.46550013,659.89,659.64,1.578]
[1752020194181,1.46550013,659.88,659.64,1.578]
[1752020194379,1.46550013,659.87,659.64,1.578]
[1752020194679,1.46550013,659.86,659.64,1.578]
[1752020194882,1.46550013,659.85,659.64,1.578]
[1752020195082,1.46550013,659.84,659.64,1.578]
[1752020195278,1.46550013,659.83,659.64,1.578]
[1752020195483,1.46550013,659.82,659.64,1.578]
[1752020195683,1.46550013,659.81,659.64,1.578]
[1752020195884,1.46550013,659.8,659.64,1.578]
[1752020196084,1.46550013,659.79,659.64,1.578]
[1752020196381,1.69718897,660.04,659.64,1.578]
[1752020196580,1.46723988,660.03,659.64,1.578]
[1752020196781,1.46723988,660.02,659.64,1.578]
[1752020196982,1.46723988,660.01,659.64,1.578]
[1752020197185,1.46723988,660.0,659.64,1.578]
[1752020197386,1.46723988,659.99,659.64,1.578]
[1752020197584,1.46723988,659.98,659.64,1.578]
[1752020197785,1.46723988,659.97,659.64,1.578]
[1752020197986,1.46723988,659.96,659.64,1.578]
[1752020198187,1.46723988,659.95,659.64,1.578]
[1752020198385,1.46723988,659.94,659.64,1.578]
[1752020198586,1.46723988,659.93,659.64,1.578]
[1752020198886,1.46723988,659.92,659.64,1.578]
[1752020199091,1.46723988,659.91,659.64,1.578]
[1752020199287,1.46723988,659.9,659.64,1.578]
[1752020199588,1.46723988,659.89,659.64,1.578]
[1752020199787,1.46723988,659.88,659.64,1.578]
[1752020199991,1.46723988,659.87,659.64,1.578]
[1752020200292,1.46723988,659.86,659.64,1.578]
[1752020200491,1.69718897,660.02,659.64,1.578]
[1752020200492,1.46723988,659.85,659.64,1.578]
[1752020200690,1.46723988,659.84,659.64,1.578]
[1752020200889,1.46723988,659.83,659.64,1.578]
[1752020201088,1.46723988,659.82,659.64,1.578]
[1752020201286,1.46723988,659.81,659.64,1.578]
[1752020201491,1.69718897,660.01,659.64,1.578]
[1752020201792,1.46726177,660.0,659.64,1.578]
[1752020201993,1.46726177,659.99,659.64,1.578]
[1752020202193,1.46726177,659.98,659.64,1.578]
[1752020202389,1.46726177,659.97,659.64,1.578]
[1752020202594,1.46726177,659.96,659.64,1.578]
[1752020202794,1.46726177,659.95,659.64,1.578]
[1752020202992,1.69718897,660.0,659.64,1.578]
[1752020202993,1.46726177,659.94,659.64,1.578]
[1752020203189,1.46726177,659.93,659.64,1.578]
[1752020203393,1.46726177,659.92,659.64,1.578]
[1752020203594,1.46726177,659.91,659.64,1.578]
[1752020203795,1.46726177,659.9,659.64,1.578]
[1752020203991,1.46726177,659.89,659.64,1.578]
[1752020204195,1.46726177,659.88,659.64,1.578]
[1752020204395,1.46726177,659.87,659.64,1.578]
[1752020204595,1.46726177,659.86,659.64,1.578]
[1752020204794,1.46726177,659.85,659.64,1.578]
[1752020204990,1.46726177,659.84,659.64,1.578]
[1752020205195,1.46726177,659.83,659.64,1.578]
[1752020205394,1.46726177,659.82,659.64,1.578]
[1752020205597,1.46726177,659.81,659.64,1.578]
[1752020205797,1.69718897,660.0,659.64,1.578]
[1752020206097,1.46728305,659.99,659.64,1.578]
[1752020206297,1.46728305,659.98,659.64,1.578]
[1752020206592,1.46728305,659.97,659.64,1.578]
[1752020206796,1.46728305,659.96,659.64,1.578]
[1752020207096,1.46728305,659.95,659.64,1.578]
[1752020207296,1.46728305,659.94,659.64,1.578]
[1752020207598,1.46728305,659.93,659.64,1.578]
[1752020207798,1.46728305,659.92,659.64,1.578]
[1752020208096,1.46728305,659.91,659.64,1.578]
[1752020208392,1.46728305,659.9,659.64,1.578]
[1752020208693,1.46728305,659.89,659.64,1.578]
[1752020208897,1.46728305,659.88,659.64,1.578]
[1752020209095,1.46728305,659.87,659.64,1.578]
[1752020209293,1.46728305,659.86,659.64,1.578]
[1752020209497,1.46728305,659.85,659.64,1.578]
[1752020209695,1.46728305,659.84,659.64,1.578]
[1752020209895,1.46728305,659.83,659.64,1.578]
[1752020210097,1.46728305,659.82,659.64,1.578]
[1752020210298,1.46728305,659.81,659.64,1.578]
[1752020210593,1.46728305,659.8,659.64,1.578]
[1752020210798,1.69718897,660.01,659.64,1.578]
[1752020210994,1.46728946,660.0,659.64,1.578]
[1752020211195,1.46728946,659.99,659.64,1.578]
[1752020211395,1.46728946,659.98,659.64,1.578]
[1752020211595,1.46728946,659.97,659.64,1.578]
[1752020211799,1.46728946,659.96,659.64,1.578]
[1752020211995,1.46728946,659.95,659.64,1.578]
[1752020212198,1.69718897,660.01,659.64,1.578]
[1752020212199,1.46728946,659.94,659.64,1.578]
[1752020212398,1.46728946,659.93,659.64,1.578]
[1752020212597,1.46728946,659.92,659.64,1.578]
[1752020212800,1.46728946,659.91,659.64,1.578]
[1752020213002,1.46728946,659.9,659.64,1.578]
[1752020213202,1.46728946,659.89,659.64,1.578]
[1752020213502,1.46728946,659.88,659.64,1.578]
[1752020213698,1.46728946,659.87,659.64,1.578]
[1752020213898,1.46728946,659.86,659.64,1.578]
[1752020214102,1.46728946,659.85,659.64,1.578]
[1752020214299,1.46728946,659.84,659.64,1.578]
[1752020214500,1.46728946,659.83,659.64,1.578]
[1752020214800,1.46728946,659.82,659.64,1.578]
[1752020215003,1.69718897,660.01,659.64,1.578]
[1752020215004,1.46728946,659.81,659.64,1.578]
[1752020215204,1.46728946,659.8,659.64,1.578]
[1752020215401,1.69718897,660.01,659.64,1.578]
[1752020215605,1.46731729,660.0,659.64,1.578]
[1752020215800,1.69718897,660.01,659.63,0.26366832]
[1752020215801,1.46731729,659.99,659.63,0.26366832]
[1752020216000,1.46731729,659.98,659.63,0.26366832]
[1752020216204,1.46731729,659.97,659.63,0.26366832]
[1752020216405,1.46731729,659.96,659.63,0.26366832]
[1752020216705,1.46731729,659.95,659.63,0.26366832]
[1752020216902,1.46731729,659.94,659.63,0.26366832]
[1752020217205,1.46731729,659.93,659.63,0.26366832]
[1752020217406,1.46731729,659.92,659.63,0.26366832]
[1752020217602,1.46731729,659.91,659.63,0.26366832]
[1752020217807,1.46731729,659.9,659.63,0.26366832]
[1752020218103,1.46731729,659.89,659.63,0.26366832]
[1752020218302,1.46731729,659.88,659.63,0.26366832]
[1752020218504,1.46731729,659.87,659.63,0.26366832]
[1752020218707,1.46731729,659.86,659.63,0.26366832]
[1752020219004,1.46731729,659.85,659.63,0.26366832]
[1752020219208,1.46731729,659.84,659.64,2.293]
[1752020219405,1.46731729,659.83,659.64,2.293]
[1752020219704,1.46731729,659.82,659.64,2.293]
[1752020219908,1.46731729,659.81,659.64,2.293]
[1752020220109,1.46731729,659.8,659.64,2.293]
[1752020220310,1.69718897,660.01,659.64,2.293]
[1752020220609,1.46740006,660.0,659.64,2.293]
[1752020220806,1.46740006,659.99,659.64,2.293]
[1752020221004,1.46740006,659.98,659.64,2.293]
[1752020221206,1.46740006,659.97,659.64,2.293]
[1752020221403,1.46740006,659.96,659.64,2.293]
[1752020221604,1.46740006,659.95,659.64,2.293]
[1752020221908,1.46740006,659.94,659.64,2.293]
[1752020222109,1.46740006,659.93,659.64,2.293]
[1752020222310,1.46740006,659.92,659.64,2.293]
[1752020222506,1.46740006,659.91,659.64,2.293]
[1752020222810,1.46740006,659.9,659.64,2.293]
[1752020223006,1.46740006,659.89,659.64,2.293]
[1752020223310,1.46740006,659.88,659.64,2.293]
[1752020223609,1.46740006,659.87,659.64,2.293]
[1752020223808,1.46740006,659.86,659.64,2.293]
[1752020224004,1.46740006,659.85,659.64,2.293]
[1752020224310,1.46740006,659.84,659.64,2.293]
[1752020224504,1.46740006,659.83,659.64,2.293]
[1752020224709,1.46740006,659.82,659.64,2.293]
[1752020224909,1.46740006,659.81,659.64,2.293]
[1752020225106,1.69718897,660.01,659.64,2.293]
[1752020225107,1.46740006,659.8,659.64,2.293]
[1752020225308,1.69718897,660.01,659.64,2.293]
[1752020225608,1.46739534,660.0,659.64,2.293]
[1752020225808,1.46739534,659.99,659.64,2.293]
[1752020226012,1.46739534,659.98,659.64,2.293]
[1752020226211,1.46739534,659.97,659.64,2.293]
[1752020226408,1.46739534,659.96,659.64,2.293]
[1752020226607,1.46739534,659.95,659.64,2.293]
[1752020226808,1.46739534,659.94,659.64,2.293]
[1752020227007,1.46739534,659.93,659.64,2.293]
[1752020227310,1.46739534,659.92,659.64,2.293]
[1752020227511,1.46739534,659.91,659.64,2.293]
[1752020227711,1.46739534,659.9,659.64,2.293]
[1752020228011,1.46739534,659.89,659.64,2.293]
[1752020228307,1.46739534,659.88,659.64,2.293]
[1752020228607,1.46739534,659.87,659.64,2.293]
[1752020228808,1.46739534,659.86,659.64,2.293]
[1752020229111,1.46739534,659.85,659.64,2.293]
[1752020229312,1.46739534,659.84,659.64,2.293]
[1752020229507,1.46739534,659.83,659.64,2.293]
[1752020229710,1.46739534,659.82,659.64,2.293]
[1752020230011,1.46739534,659.81,659.64,2.293]
[1752020230209,1.69718897,660.0,659.64,2.293]
[1752020230409,1.46737038,659.99,659.64,2.293]
[1752020230610,1.46737038,659.98,659.64,2.293]
[1752020230910,1.46737038,659.97,659.64,2.293]
[1752020231113,1.46737038,659.96,659.64,2.293]
[1752020231314,1.46737038,659.95,659.64,2.293]
[1752020231515,1.46737038,659.94,659.64,2.293]
[1752020231810,1.46737038,659.93,659.64,2.293]
[1752020232012,1.46737038,659.92,659.64,2.293]
[1752020232215,1.46737038,659.91,659.64,2.293]
[1752020232417,1.46737038,659.9,659.64,2.293]
[1752020232610,1.46737038,659.89,659.64,2.293]
[1752020232810,1.46737038,659.88,659.64,2.293]
[1752020233015,1.46737038,659.87,659.64,2.293]
[1752020233213,1.46737038,659.86,659.64,2.293]
[1752020233412,1.46737038,659.85,659.64,2.293]
[1752020233625,1.46737038,659.84,659.64,2.293]
[1752020233817,1.46737038,659.83,659.64,2.293]
[1752020234017,1.46737038,659.82,659.64,2.293]
[1752020234220,1.46737038,659.81,659.64,2.293]
[1752020234515,1.69718897,660.0,659.64,2.293]
[1752020234719,1.46737225,659.99,659.64,2.293]
[1752020234918,1.46737225,659.98,659.64,2.293]
[1752020235117,1.46737225,659.97,659.64,2.293]
[1752020235315,1.46737225,659.96,659.64,2.293]
[1752020235520,1.46737225,659.95,659.64,2.293]
[1752020235720,1.46737225,659.94,659.64,2.293]
[1752020236019,1.46737225,659.93,659.64,2.293]
[1752020236220,1.46737225,659.92,659.64,2.293]
[1752020236519,1.46737225,659.91,659.64,2.293]
[1752020236716,1.46737225,659.9,659.64,2.293]
[1752020236914,1.46737225,659.89,659.64,2.293]
[1752020237118,1.46737225,659.88,659.64,2.293]
[1752020237316,1.46737225,659.87,659.64,2.293]
[1752020237516,1.46737225,659.86,659.64,2.293]
[1752020237722,1.46737225,659.85,659.64,2.293]
[1752020237915,1.46737225,659.84,659.64,2.293]
[1752020238216,1.46737225,659.83,659.64,2.293]
[1752020238416,1.46737225,659.82,659.64,2.293]
[1752020238719,1.69718897,660.0,659.64,2.293]
[1752020238720,1.46737225,659.81,659.64,2.293]
[1752020238920,1.69718897,660.0,659.64,2.293]
[1752020239121,1.46737625,659.99,659.64,2.293]
[1752020239423,1.46737625,659.98,659.64,2.293]
[1752020239724,1.46737625,659.97,659.64,2.293]
[1752020240020,1.46737625,659.96,659.64,2.293]
[1752020240218,1.46737625,659.95,659.64,2.293]
[1752020240420,1.46737625,659.94,659.64,2.293]
[1752020240716,1.46737625,659.93,659.64,2.293]
[1752020240915,1.46737625,659.92,659.64,2.293]
[1752020241114,1.46737625,659.91,659.64,2.293]
[1752020241320,1.46737625,659.9,659.64,2.293]
[1752020241519,1.46737625,659.89,659.64,2.293]
[1752020241717,1.46737625,659.88,659.64,2.293]
[1752020241922,1.46737625,659.87,659.64,2.293]
[1752020242121,1.46737625,659.86,659.64,2.293]
[1752020242319,1.46737625,659.85,659.64,2.293]
[1752020242517,1.69718897,660.0,659.64,2.293]
[1752020242518,1.46737625,659.84,659.64,2.293]
[1752020242718,1.46737625,659.83,659.64,2.293]
[1752020242919,1.46737625,659.82,659.64,2.293]
[1752020243123,1.46737625,659.81,659.64,2.293]
[1752020243418,1.46737625,659.8,659.64,2.293]
[1752020243718,1.69718897,660.01,659.64,2.293]
[1752020243918,1.46738213,660.0,659.64,2.293]
[1752020244118,1.46738213,659.99,659.64,2.293]
[1752020244320,1.46738213,659.98,659.64,2.293]
[1752020244519,1.46738213,659.97,659.64,2.293]
[1752020244719,1.46738213,659.96,659.64,2.293]
[1752020244924,1.46738213,659.95,659.64,2.293]
[1752020245118,1.46738213,659.94,659.64,2.293]
[1752020245322,1.46738213,659.93,659.64,2.293]
[1752020245520,1.46738213,659.92,659.64,2.293]
[1752020245823,1.46738213,659.91,659.64,2.293]
[1752020246023,1.46738213,659.9,659.64,2.293]
[1752020246220,1.46738213,659.89,659.64,2.293]
[1752020246423,1.46738213,659.88,659.64,2.293]
[1752020246623,1.46738213,659.87,659.64,2.293]
[1752020246823,1.46738213,659.86,659.64,2.293]
[1752020247019,1.46738213,659.85,659.64,2.293]
[1752020247321,1.46738213,659.84,659.64,2.293]
[1752020247523,1.46738213,659.83,659.64,2.293]
[1752020247719,1.46738213,659.82,659.64,2.293]
[1752020248023,1.46738213,659.81,659.64,2.293]
[1752020248220,1.46738213,659.8,659.64,2.293]
[1752020248424,1.69718897,660.01,659.64,2.293]
[1752020248621,1.46738581,660.0,659.64,2.293]
[1752020248822,1.46738581,659.99,659.64,2.293]
[1752020249026,1.46738581,659.98,659.64,2.293]
[1752020249325,1.46738581,659.97,659.64,2.293]
[1752020249523,1.46738581,659.96,659.64,2.293]
[1752020249723,1.46738581,659.95,659.64,2.293]
[1752020249928,1.46738581,659.94,659.64,2.293]
[1752020250122,1.46738581,659.93,659.64,2.293]
[1752020250321,1.46738581,659.92,659.64,2.293]
[1752020250523,1.46738581,659.91,659.64,2.293]
[1752020250723,1.46738581,659.9,659.64,2.293]
[1752020250923,1.46738581,659.89,659.64,2.293]
[1752020251124,1.46738581,659.88,659.64,2.293]
[1752020251327,1.46738581,659.87,659.64,2.293]
[1752020251622,1.46738581,659.86,659.64,2.293]
[1752020251826,1.46738581,659.85,659.64,2.293]
[1752020252024,1.46738581,659.84,659.64,2.293]
[1752020252229,1.46738581,659.83,659.64,2.293]
[1752020252529,1.46738581,659.82,659.64,2.293]
[1752020252729,1.46738581,659.81,659.64,2.293]
[1752020252927,1.46738581,659.8,659.64,2.293]
[1752020253131,1.69718897,660.0,659.64,2.293]
[1752020253328,1.46738532,659.99,659.64,2.293]
[1752020253531,1.46738532,659.98,659.64,2.293]
[1752020253733,1.46738532,659.97,659.64,2.293]
[1752020253932,1.46738532,659.96,659.64,2.293]
[1752020254131,1.46738532,659.95,659.64,2.293]
[1752020254431,1.46738532,659.94,659.64,2.293]
[1752020254628,1.46738532,659.93,659.64,2.293]
[1752020254832,1.46738532,659.92,659.64,2.293]
[1752020255034,1.46738532,659.91,659.64,2.293]
[1752020255329,1.46738532,659.9,659.64,2.293]
[1752020255533,1.46738532,659.89,659.64,2.293]
[1752020255833,1.46738532,659.88,659.64,2.293]
[1752020256133,1.46738532,659.87,659.64,2.293]
[1752020256329,1.46738532,659.86,659.64,2.293]
[1752020256528,1.46738532,659.85,659.64,2.293]
[1752020256732,1.46738532,659.84,659.64,2.293]
[1752020256930,1.69718897,659.99,659.64,2.293]
[1752020256931,1.46738532,659.83,659.64,2.293]
[1752020257229,1.69718897,659.99,659.64,2.293]
[1752020257230,1.46738532,659.82,659.64,2.293]
[1752020257433,1.46738532,659.81,659.64,2.293]
[1752020257632,1.46738532,659.8,659.64,2.293]
[1752020257934,1.69718897,659.99,659.64,2.293]
[1752020258132,1.46738101,659.98,659.64,2.293]
[1752020258331,1.46738101,659.97,659.64,2.293]
[1752020258529,1.46738101,659.96,659.64,2.293]
[1752020258736,1.46738101,659.95,659.64,2.293]
[1752020258934,1.46738101,659.94,659.64,2.293]
[1752020259134,1.46738101,659.93,659.64,2.293]
[1752020259436,1.46738101,659.92,659.64,2.293]
[1752020259635,1.46738101,659.91,659.64,2.293]
[1752020259836,1.46738101,659.9,659.64,2.293]
[1752020260036,1.46738101,659.89,659.64,2.293]
[1752020260336,1.46738101,659.88,659.64,2.293]
[1752020260535,1.46738101,659.87,659.64,2.293]
[1752020260735,1.46738101,659.86,659.64,2.293]
[1752020260939,1.46738101,659.85,659.64,2.293]
[1752020261140,1.46738101,659.84,659.64,2.293]
[1752020261340,1.46738101,659.83,659.64,2.293]
[1752020261542,1.46738101,659.82,659.64,2.293]
[1752020261837,1.46738101,659.81,659.64,2.293]
[1752020262043,1.46738101,659.8,659.64,2.293]
[1752020262238,1.69718897,660.0,659.64,2.293]
[1752020262442,1.46737417,659.99,659.64,2.293]
[1752020262743,1.46737417,659.98,659.64,2.293]
[1752020262943,1.46737417,659.97,659.64,2.293]
[1752020263143,1.46737417,659.96,659.64,2.293]
[1752020263339,1.46737417,659.95,659.64,2.293]
[1752020263543,1.46737417,659.94,659.64,2.293]
[1752020263746,1.46737417,659.93,659.64,2.293]
[1752020264040,1.46737417,659.92,659.64,2.293]
[1752020264240,1.46737417,659.91,659.64,2.293]
[1752020264442,1.46737417,659.9,659.64,2.293]
[1752020264745,1.46737417,659.89,659.64,2.293]
[1752020265045,1.46737417,659.88,659.64,2.293]
[1752020265340,1.46737417,659.87,659.64,2.293]
[1752020265540,1.46737417,659.86,659.64,2.293]
[1752020265745,1.46737417,659.85,659.64,2.293]
[1752020265946,1.46737417,659.84,659.64,2.293]
[1752020266245,1.46737417,659.83,659.64,2.293]
[1752020266441,1.46737417,659.82,659.64,2.293]
[1752020266644,1.69718897,659.99,659.64,2.293]
[1752020266645,1.46737417,659.81,659.64,2.293]
[1752020266845,1.46737417,659.8,659.64,2.293]
[1752020267042,1.69718897,659.99,659.64,2.293]
[1752020267245,1.46736332,659.98,659.64,2.293]
[1752020267541,1.46736332,659.97,659.64,2.293]
[1752020267743,1.46736332,659.96,659.64,2.293]
[1752020268043,1.46736332,659.95,659.64,2.293]
[1752020268346,1.46736332,659.94,659.64,2.293]
[1752020268544,1.46736332,659.93,659.64,2.293]
[1752020268844,1.46736332,659.92,659.64,2.293]
[1752020269042,1.46736332,659.91,659.64,2.293]
[1752020269246,1.46736332,659.9,659.64,2.293]
[1752020269446,1.46736332,659.89,659.64,2.293]
[1752020269645,1.46736332,659.88,659.64,2.293]
[1752020269844,1.46736332,659.87,659.64,2.293]
[1752020270046,1.46736332,659.86,659.64,2.293]
[1752020270243,1.46736332,659.85,659.64,2.293]
[1752020270445,1.46736332,659.84,659.64,2.293]
[1752020270646,1.46736332,659.83,659.64,2.293]